{"text_format":"1","workbook":"xlsx","n_sheets":5,"sheets":["الاسماء ","data","العاشر  أ (16)","العاشر  أ (17)","خلاصة الغياب "],"not_rendered":{"charts":0,"images":9,"macros":1,"external_links":0,"defined_names":8,"comments":0,"pivot_tables":0},"unopened":[],"bounds":{"document_bytes":16777216,"sheet_cells":100000,"rows_first":2000,"rows_last":500,"rows_between":2000,"halvings":0,"cell_chars":16384,"cell_head_chars":4096},"cells_cut":0,"cells_raw":0,"read":"whole","date_system":"1900"}

{"sheet":"الاسماء ","index":0,"n_rows":13,"n_cols":26,"rows_kept":13,"cut":false,"hidden":false,"merged":[[0,24,2,24],[0,22,2,22],[0,0,2,0],[0,2,2,2],[0,4,2,4],[0,18,2,18],[0,20,2,20]]}
["الرقم","ا","الرقم","ب","الرقم","ج",null,"العاشر أ",null,"العاشر ب",null,"العاشر ج",null,"العاشر د",null,"العاشر هـ",null,"العاشر و ","الرقم","العاشر ز ","الرقم","العاشر ح ","الرقم","العاشر ط ","الرقم","الحادي عشر أ"]
[null,"عدد طلاب الشعبة ",null,"عدد طلاب الشعبة ",null,"عدد طلاب الشعبة ",null,"عدد طلاب الشعبة ",null,"عدد طلاب الشعبة ",null,"عدد طلاب الشعبة ",null,"عدد طلاب الشعبة ",null,"عدد طلاب الشعبة ",null,"عدد طلاب الشعبة ",null,"عدد طلاب الشعبة ",null,"عدد طلاب الشعبة ",null,"عدد طلاب الشعبة ",null,"عدد طلاب الشعبة "]
[null,{"$f":"COUNTA(B4:B8)","v":0},null,{"$f":"COUNTA(D4:D8)","v":0},null,{"$f":"COUNTA(F4:F8)","v":0},"الرقم",{"$f":"COUNTA(H4:H8)","v":5},null,{"$f":"COUNTA(J4:J8)","v":5},null,{"$f":"COUNTA(L4:L8)","v":5},null,{"$f":"COUNTA(N4:N8)","v":5},null,{"$f":"COUNTA(P4:P8)","v":5},null,{"$f":"COUNTA(R4:R8)","v":5},null,{"$f":"COUNTA(T4:T8)","v":5},null,{"$f":"COUNTA(V4:V8)","v":5},null,{"$f":"COUNTA(X4:X8)","v":5},null,{"$f":"COUNTA(Z4:Z8)","v":5}]
[1,null,1,null,1,null,1,"ابراهيم محمد ",1,"ابراهيم محمد ",1,"ابراهيم محمد ",1,"ابراهيم محمد ",1,"ابراهيم محمد ",1,"ابراهيم محمد ",1,"ابراهيم محمد ",1,"ابراهيم محمد ",1,"ابراهيم محمد ",1,"ابراهيم محمد "]
[2,null,2,null,2,null,2,"احمد امين ",2,"احمد امين ",2,"احمد امين ",2,"احمد امين ",2,"احمد امين ",2,"احمد امين ",2,"احمد امين ",2,"احمد امين ",2,"احمد امين ",2,"ابراهيم محمد "]
[3,null,3,null,3,null,3,"احمد هيثم ",3,"احمد هيثم ",3,"احمد هيثم ",3,"احمد هيثم ",3,"احمد هيثم ",3,"احمد هيثم ",3,"احمد هيثم ",3,"احمد هيثم ",3,"احمد هيثم ",3,"احمد امين "]
[4,null,4,null,4,null,4,"ادهم ياسر ",4,"ادهم ياسر ",4,"ادهم ياسر ",4,"ادهم ياسر ",4,"ادهم ياسر ",4,"ادهم ياسر ",4,"ادهم ياسر ",4,"ادهم ياسر ",4,"ادهم ياسر ",4,"احمد امين "]
[5,null,5,null,5,null,5,"انس ياسر ",5,"انس ياسر ",5,"انس ياسر ",5,"انس ياسر ",5,"انس ياسر ",5,"انس ياسر ",5,"انس ياسر ",5,"انس ياسر ",5,"انس ياسر ",5,"احمد هيثم "]
[null,null,null,null,null,null,null,null,null,null,null,null,null,null,null,null,null,null,null,null,null,null,null,null,null,"احمد هيثم "]
[null,null,null,null,null,null,null,null,null,null,null,null,null,null,null,null,null,null,null,null,null,null,null,null,null,"ادهم ياسر "]
[null,null,null,null,null,null,null,null,null,null,null,null,null,null,null,null,null,null,null,null,null,null,null,null,null,"ادهم ياسر "]
[null,null,null,null,null,null,null,null,null,null,null,null,null,null,null,null,null,null,null,null,null,null,null,null,null,"انس ياسر "]
[null,null,null,null,null,null,null,null,null,null,null,null,null,null,null,null,null,null,null,null,null,null,null,null,null,"انس ياسر "]

{"sheet":"data","index":1,"n_rows":66,"n_cols":35,"rows_kept":66,"cut":false,"hidden":false,"merged":[[55,34,55,36],[44,34,44,36],[45,34,45,36],[46,34,46,36],[47,34,47,36],[48,34,48,36],[49,34,49,36],[50,34,50,36],[51,34,51,36],[52,34,52,36],[53,34,53,36],[54,34,54,36],[64,34,64,36],[65,34,65,36],[56,34,56,36],[57,34,57,36],[58,34,58,36],[59,34,59,36],[60,34,60,36],[61,34,61,36],[62,34,62,36],[63,34,63,36],[43,34,43,36],[32,34,32,36],[33,34,33,36],[34,34,34,36],[35,34,35,36],[36,34,36,36],[37,34,37,36],[38,34,38,36],[39,34,39,36],[40,34,40,36],[41,34,41,36],[42,34,42,36],[31,34,31,36],[20,34,20,36],[21,34,21,36],[22,34,22,36],[23,34,23,36],[24,34,24,36],[25,34,25,36],[26,34,26,36],[27,34,27,36],[28,34,28,36],[29,34,29,36],[30,34,30,36],[19,34,19,36],[8,34,8,36],[9,34,9,36],[10,34,10,36],[11,34,11,36],[12,34,12,36],[13,34,13,36],[14,34,14,36],[15,34,15,36],[16,34,16,36],[17,34,17,36],[18,34,18,36],[7,34,7,36],[0,0,0,36],[1,0,1,36],[2,2,2,6],[2,7,2,11],[2,13,2,14],[2,15,2,19],[2,21,2,23],[2,24,2,30],[2,34,2,36],[4,0,5,0],[4,1,5,1],[4,33,5,33],[4,34,5,36],[6,34,6,36]]}
[]
[]
[null,null,"سجل الغياب لشهر",null,null,null,null,{"$f":"TEXT(C5,\"mmmm yyyy\")","v":"أكتوبر 2021"},null,null,null,null,null,"لعام",null,null,null,null,null,null,null,"مربي الصف",null,null,null,null,null,null,null,null,null,null,null,"الصف:","الحادي عشر أ"]
[]
["الرقم المتسلسل","الاســـــــــــــم","2021-10-01",{"$f":"C5+1","v":"2021-10-02"},{"$f":"D5+1","v":"2021-10-03"},"2021-10-04","2021-10-05","2021-10-06","2021-10-07","2021-10-08","2021-10-09","2021-10-10","2021-10-11","2021-10-12","2021-10-13","2021-10-14","2021-10-15","2021-10-16","2021-10-17","2021-10-18","2021-10-19","2021-10-20","2021-10-21","2021-10-22","2021-10-23","2021-10-24","2021-10-25","2021-10-26","2021-10-27","2021-10-28","2021-10-29","2021-10-30","2021-10-31"," عدد أيام غياب \n الطالب في الشهر","مـلاحظات"]
[null,null,{"$f":"TEXT(C5,\"ddd\")","v":"الجمعة"},{"$f":"TEXT(D5,\"ddd\")","v":"السبت"},"الأحد","الإثنين","الثلاثاء","الأربعاء","الخميس","الجمعة","السبت","الأحد","الإثنين","الثلاثاء","الأربعاء","الخميس","الجمعة","السبت","الأحد","الإثنين","الثلاثاء","الأربعاء","الخميس","الجمعة","السبت","الأحد","الإثنين","الثلاثاء","الأربعاء","الخميس","الجمعة","السبت","الأحد"]
[1,"ابراهيم محمد ",null,null,"غ",null,null,null,null,null,null,"غ",null,null,null,"غ",null,null,null,null,null,null,null,null,null,null,null,null,null,null,null,null,null,{"$f":"IF(B7=\"\",\"\", COUNTIF(C7:AG7,\"غ\"))","v":3}]
[2,"ابراهيم محمد ",null,null,null,null,null,null,null,null,null,null,null,null,null,null,null,null,null,null,null,null,null,null,null,null,null,null,null,null,null,null,null,{"$f":"IF(B8=\"\",\"\", COUNTIF(C8:AG8,\"غ\"))","v":0}]
[3,"احمد امين ",null,null,null,null,null,null,null,null,null,null,null,null,null,null,null,null,null,null,null,null,null,null,null,null,null,null,null,null,null,null,null,0]
[4,"احمد امين ",null,null,null,null,null,null,null,null,null,null,null,null,null,null,null,null,null,null,null,null,null,null,null,null,null,null,null,null,null,null,null,0]
[5,"احمد هيثم ",null,null,null,null,null,null,null,null,null,null,null,null,null,null,null,null,null,null,null,null,null,null,null,null,null,null,null,null,null,null,null,0]
[6,"احمد هيثم ",null,null,null,null,null,null,null,null,null,null,null,null,null,null,null,null,null,null,null,null,null,null,null,null,null,null,null,null,null,null,null,0]
[7,"ادهم ياسر ",null,null,null,null,null,null,null,null,null,null,null,null,null,null,null,null,null,null,null,null,null,null,null,null,null,null,null,null,null,null,null,0]
[8,"ادهم ياسر ",null,null,null,null,null,null,null,null,null,null,null,null,null,null,null,null,null,null,null,null,null,null,null,null,null,null,null,null,null,null,null,0]
[9,"انس ياسر ",null,null,null,null,null,null,null,null,null,null,null,null,null,null,null,null,null,null,null,null,null,null,null,null,null,null,null,null,null,null,null,0]
[10,"انس ياسر ",null,null,null,null,null,null,null,null,null,null,null,null,null,null,null,null,null,null,null,null,null,null,null,null,null,null,null,null,null,null,null,0]
[11,null,null,null,null,null,null,null,null,null,null,null,null,null,null,null,null,null,null,null,null,null,null,null,null,null,null,null,null,null,null,null,null,""]
[12,null,null,null,null,null,null,null,null,null,null,null,null,null,null,null,null,null,null,null,null,null,null,null,null,null,null,null,null,null,null,null,null,""]
[13,null,null,null,null,null,null,null,null,null,null,null,null,null,null,null,null,null,null,null,null,null,null,null,null,null,null,null,null,null,null,null,null,""]
[14,null,null,null,null,null,null,null,null,null,null,null,null,null,null,null,null,null,null,null,null,null,null,null,null,null,null,null,null,null,null,null,null,""]
[15,null,null,null,null,null,null,null,null,null,null,null,null,null,null,null,null,null,null,null,null,null,null,null,null,null,null,null,null,null,null,null,null,""]
[16,null,null,null,null,null,null,null,null,null,null,null,null,null,null,null,null,null,null,null,null,null,null,null,null,null,null,null,null,null,null,null,null,""]
[17,null,null,null,null,null,null,null,null,null,null,null,null,null,null,null,null,null,null,null,null,null,null,null,null,null,null,null,null,null,null,null,null,""]
[18,null,null,null,null,null,null,null,null,null,null,null,null,null,null,null,null,null,null,null,null,null,null,null,null,null,null,null,null,null,null,null,null,""]
[19,null,null,null,null,null,null,null,null,null,null,null,null,null,null,null,null,null,null,null,null,null,null,null,null,null,null,null,null,null,null,null,null,""]
[20,null,null,null,null,null,null,null,null,null,null,null,null,null,null,null,null,null,null,null,null,null,null,null,null,null,null,null,null,null,null,null,null,""]
[21,null,null,null,null,null,null,null,null,null,null,null,null,null,null,null,null,null,null,null,null,null,null,null,null,null,null,null,null,null,null,null,null,""]
[22,null,null,null,null,null,null,null,null,null,null,null,null,null,null,null,null,null,null,null,null,null,null,null,null,null,null,null,null,null,null,null,null,""]
[23,null,null,null,null,null,null,null,null,null,null,null,null,null,null,null,null,null,null,null,null,null,null,null,null,null,null,null,null,null,null,null,null,""]
[24,null,null,null,null,null,null,null,null,null,null,null,null,null,null,null,null,null,null,null,null,null,null,null,null,null,null,null,null,null,null,null,null,""]
[25,null,null,null,null,null,null,null,null,null,null,null,null,null,null,null,null,null,null,null,null,null,null,null,null,null,null,null,null,null,null,null,null,""]
[26,null,null,null,null,null,null,null,null,null,null,null,null,null,null,null,null,null,null,null,null,null,null,null,null,null,null,null,null,null,null,null,null,""]
[27,null,null,null,null,null,null,null,null,null,null,null,null,null,null,null,null,null,null,null,null,null,null,null,null,null,null,null,null,null,null,null,null,""]
[28,null,null,null,null,null,null,null,null,null,null,null,null,null,null,null,null,null,null,null,null,null,null,null,null,null,null,null,null,null,null,null,null,""]
[29,null,null,null,null,null,null,null,null,null,null,null,null,null,null,null,null,null,null,null,null,null,null,null,null,null,null,null,null,null,null,null,null,""]
[30,null,null,null,null,null,null,null,null,null,null,null,null,null,null,null,null,null,null,null,null,null,null,null,null,null,null,null,null,null,null,null,null,""]
[31,null,null,null,null,null,null,null,null,null,null,null,null,null,null,null,null,null,null,null,null,null,null,null,null,null,null,null,null,null,null,null,null,""]
[32,null,null,null,null,null,null,null,null,null,null,null,null,null,null,null,null,null,null,null,null,null,null,null,null,null,null,null,null,null,null,null,null,""]
[33,null,null,null,null,null,null,null,null,null,null,null,null,null,null,null,null,null,null,null,null,null,null,null,null,null,null,null,null,null,null,null,null,""]
[34,null,null,null,null,null,null,null,null,null,null,null,null,null,null,null,null,null,null,null,null,null,null,null,null,null,null,null,null,null,null,null,null,""]
[35,null,null,null,null,null,null,null,null,null,null,null,null,null,null,null,null,null,null,null,null,null,null,null,null,null,null,null,null,null,null,null,null,""]
[36,null,null,null,null,null,null,null,null,null,null,null,null,null,null,null,null,null,null,null,null,null,null,null,null,null,null,null,null,null,null,null,null,""]
[37,null,null,null,null,null,null,null,null,null,null,null,null,null,null,null,null,null,null,null,null,null,null,null,null,null,null,null,null,null,null,null,null,""]
[38,null,null,null,null,null,null,null,null,null,null,null,null,null,null,null,null,null,null,null,null,null,null,null,null,null,null,null,null,null,null,null,null,""]
[39,null,null,null,null,null,null,null,null,null,null,null,null,null,null,null,null,null,null,null,null,null,null,null,null,null,null,null,null,null,null,null,null,""]
[40,null,null,null,null,null,null,null,null,null,null,null,null,null,null,null,null,null,null,null,null,null,null,null,null,null,null,null,null,null,null,null,null,""]
[41,null,null,null,null,null,null,null,null,null,null,null,null,null,null,null,null,null,null,null,null,null,null,null,null,null,null,null,null,null,null,null,null,""]
[42,null,null,null,null,null,null,null,null,null,null,null,null,null,null,null,null,null,null,null,null,null,null,null,null,null,null,null,null,null,null,null,null,""]
[43,null,null,null,null,null,null,null,null,null,null,null,null,null,null,null,null,null,null,null,null,null,null,null,null,null,null,null,null,null,null,null,null,""]
[44,null,null,null,null,null,null,null,null,null,null,null,null,null,null,null,null,null,null,null,null,null,null,null,null,null,null,null,null,null,null,null,null,""]
[45,null,null,null,null,null,null,null,null,null,null,null,null,null,null,null,null,null,null,null,null,null,null,null,null,null,null,null,null,null,null,null,null,""]
[46,null,null,null,null,null,null,null,null,null,null,null,null,null,null,null,null,null,null,null,null,null,null,null,null,null,null,null,null,null,null,null,null,""]
[47,null,null,null,null,null,null,null,null,null,null,null,null,null,null,null,null,null,null,null,null,null,null,null,null,null,null,null,null,null,null,null,null,""]
[48,null,null,null,null,null,null,null,null,null,null,null,null,null,null,null,null,null,null,null,null,null,null,null,null,null,null,null,null,null,null,null,null,""]
[49,null,null,null,null,null,null,null,null,null,null,null,null,null,null,null,null,null,null,null,null,null,null,null,null,null,null,null,null,null,null,null,null,""]
[50,null,null,null,null,null,null,null,null,null,null,null,null,null,null,null,null,null,null,null,null,null,null,null,null,null,null,null,null,null,null,null,null,""]
[51,null,null,null,null,null,null,null,null,null,null,null,null,null,null,null,null,null,null,null,null,null,null,null,null,null,null,null,null,null,null,null,null,""]
[52,null,null,null,null,null,null,null,null,null,null,null,null,null,null,null,null,null,null,null,null,null,null,null,null,null,null,null,null,null,null,null,null,""]
[53,null,null,null,null,null,null,null,null,null,null,null,null,null,null,null,null,null,null,null,null,null,null,null,null,null,null,null,null,null,null,null,null,""]
[54,null,null,null,null,null,null,null,null,null,null,null,null,null,null,null,null,null,null,null,null,null,null,null,null,null,null,null,null,null,null,null,null,""]
[55,null,null,null,null,null,null,null,null,null,null,null,null,null,null,null,null,null,null,null,null,null,null,null,null,null,null,null,null,null,null,null,null,""]
[56,null,null,null,null,null,null,null,null,null,null,null,null,null,null,null,null,null,null,null,null,null,null,null,null,null,null,null,null,null,null,null,null,""]
[57,null,null,null,null,null,null,null,null,null,null,null,null,null,null,null,null,null,null,null,null,null,null,null,null,null,null,null,null,null,null,null,null,""]
[58,null,null,null,null,null,null,null,null,null,null,null,null,null,null,null,null,null,null,null,null,null,null,null,null,null,null,null,null,null,null,null,null,""]
[59,null,null,null,null,null,null,null,null,null,null,null,null,null,null,null,null,null,null,null,null,null,null,null,null,null,null,null,null,null,null,null,null,""]
[60,null,null,null,null,null,null,null,null,null,null,null,null,null,null,null,null,null,null,null,null,null,null,null,null,null,null,null,null,null,null,null,null,""]

{"sheet":"العاشر  أ (16)","index":2,"n_rows":71,"n_cols":46,"rows_kept":71,"cut":false,"hidden":true,"merged":[[69,21,69,25],[69,26,69,32],[70,1,70,2],[70,3,70,6],[70,7,70,10],[70,11,70,16],[70,17,70,20],[70,21,70,25],[70,26,70,32],[69,17,69,20],[66,0,66,1],[69,1,69,2],[69,3,69,6],[69,7,69,10],[69,11,69,16],[65,34,65,36],[54,34,54,36],[55,34,55,36],[56,34,56,36],[57,34,57,36],[58,34,58,36],[59,34,59,36],[60,34,60,36],[61,34,61,36],[62,34,62,36],[63,34,63,36],[64,34,64,36],[53,34,53,36],[42,34,42,36],[43,34,43,36],[44,34,44,36],[45,34,45,36],[46,34,46,36],[47,34,47,36],[48,34,48,36],[49,34,49,36],[50,34,50,36],[51,34,51,36],[52,34,52,36],[41,34,41,36],[30,34,30,36],[31,34,31,36],[32,34,32,36],[33,34,33,36],[34,34,34,36],[35,34,35,36],[36,34,36,36],[37,34,37,36],[38,34,38,36],[39,34,39,36],[40,34,40,36],[29,34,29,36],[18,34,18,36],[19,34,19,36],[20,34,20,36],[21,34,21,36],[22,34,22,36],[23,34,23,36],[24,34,24,36],[25,34,25,36],[26,34,26,36],[27,34,27,36],[28,34,28,36],[17,34,17,36],[6,34,6,36],[7,34,7,36],[8,34,8,36],[9,34,9,36],[10,34,10,36],[11,34,11,36],[12,34,12,36],[13,34,13,36],[14,34,14,36],[15,34,15,36],[16,34,16,36],[4,44,4,45],[0,0,0,36],[0,40,0,42],[1,0,1,36],[2,2,2,6],[2,7,2,11],[2,13,2,14],[2,15,2,19],[2,21,2,23],[2,24,2,30],[2,34,2,36],[4,0,5,0],[4,1,5,1],[4,33,5,33],[4,34,5,36],[4,40,4,42]]}
["بسم الله الرحمن الرحيم",null,null,null,null,null,null,null,null,null,null,null,null,null,null,null,null,null,null,null,null,null,null,null,null,null,null,null,null,null,null,null,null,null,null,null,null,"N1",null,"اسم المدرسة","مدرسة احمد الطراونة الثاتوية للبنين"]
[{"$f":"AO1","v":"مدرسة احمد الطراونة الثاتوية للبنين"},null,null,null,null,null,null,null,null,null,null,null,null,null,null,null,null,null,null,null,null,null,null,null,null,null,null,null,null,null,null,null,null,null,null,null,null,null,null,"الصف والشعبة:","التاسع ج"]
[null,null,"سجل الغياب لشهر",null,null,null,null,{"$f":"LOOKUP($AO$6,$AP$6:$AP$17,$AQ$6:$AQ$17)","v":"كانون أول"},null,null,null,null,null,"لعام",null,{"$f":"AO3","v":"2019 - 2020"},null,null,null,null,null,"مربي الصف",null,null,{"$f":"AO5","v":0},null,null,null,null,null,null,null,null,"الصف:",{"$f":"AO2","v":"التاسع ج"},null,null,null,null,"لعام",{"$f":"AP3&\" - \"&AQ3","v":"2019 - 2020"},2019,2020]
[]
["الرقم المتسلسل","الاســـــــــــــم",1,2,3,4,5,6,7,8,9,10,11,12,13,14,15,16,17,18,19,20,21,22,23,24,25,26,27,28,29,30,31," عدد أيام غياب \n الطالب في الشهر","مـلاحظات",null,null,"الاجتماعات",null,"اسم المعلم",null,null,null,null,"الاجازات"]
[null,null,null,null,null,null,null,null,null,null,null,null,null,null,null,null,null,null,null,null,null,null,null,null,null,null,null,null,null,null,null,null,null,null,null,null,null,null,null,"الشهر",12,1,"كانون ثاني",null,"التاريخ","السبب"]
[1,null,null,null,null,null,null,null,null,null,null,null,null,null,null,null,null,null,null,null,null,null,null,null,null,null,null,null,null,null,null,null,null,{"$f":"IF(B7<>\"\", IF(COUNTA(C7:AG7)> 0,COUNTA(C7:AG7),\"\"),\"\")","v":""},null,null,null,null,null,null,null,2,"شباط"]
[2,null,null,null,null,null,null,null,null,null,null,null,null,null,null,null,null,null,null,null,null,null,null,null,null,null,null,null,null,null,null,null,null,{"$f":"IF(B8<>\"\", IF(COUNTA(C8:AG8)> 0,COUNTA(C8:AG8),\"\"),\"\")","v":""},null,null,null,null,null,true,null,3,"اذار"]
[3,null,null,null,null,null,null,null,null,null,null,null,null,null,null,null,null,null,null,null,null,null,null,null,null,null,null,null,null,null,null,null,null,{"$f":"IF(B9<>\"\", IF(COUNTA(C9:AG9)> 0,COUNTA(C9:AG9),\"\"),\"\")","v":""},null,null,null,null,null,null,null,4,"نيسان"]
[4,null,null,null,null,null,null,null,null,null,null,null,null,null,null,null,null,null,null,null,null,null,null,null,null,null,null,null,null,null,null,null,null,"",null,null,null,null,null,null,null,5,"ايار"]
[5,null,null,null,null,null,null,null,null,null,null,null,null,null,null,null,null,null,null,null,null,null,null,null,null,null,null,null,null,null,null,null,null,"",null,null,null,null,null,null,null,6,"حزيران"]
[6,null,null,null,null,null,null,null,null,null,null,null,null,null,null,null,null,null,null,null,null,null,null,null,null,null,null,null,null,null,null,null,null,"",null,null,null,null,null,null,null,7,"تموز"]
[7,null,null,null,null,null,null,null,null,null,null,null,null,null,null,null,null,null,null,null,null,null,null,null,null,null,null,null,null,null,null,null,null,"",null,null,null,null,null,null,null,8,"آب"]
[8,null,null,null,null,null,null,null,null,null,null,null,null,null,null,null,null,null,null,null,null,null,null,null,null,null,null,null,null,null,null,null,null,"",null,null,null,null,null,null,null,9,"ايلول"]
[9,null,null,null,null,null,null,null,null,null,null,null,null,null,null,null,null,null,null,null,null,null,null,null,null,null,null,null,null,null,null,null,null,"",null,null,null,null,null,null,null,10,"تشرين أول"]
[10,null,null,null,null,null,null,null,null,null,null,null,null,null,null,null,null,null,null,null,null,null,null,null,null,null,null,null,null,null,null,null,null,"",null,null,null,null,null,null,null,11,"تشرين ثاني"]
[11,null,null,null,null,null,null,null,null,null,null,null,null,null,null,null,null,null,null,null,null,null,null,null,null,null,null,null,null,null,null,null,null,"",null,null,null,null,null,null,null,12,"كانون أول"]
[12,null,null,null,null,null,null,null,null,null,null,null,null,null,null,null,null,null,null,null,null,null,null,null,null,null,null,null,null,null,null,null,null,"",null,null,null,null,null,null,"نوع الغياب"]
[13,null,null,null,null,null,null,null,null,null,null,null,null,null,null,null,null,null,null,null,null,null,null,null,null,null,null,null,null,null,null,null,null,"",null,null,null,null,null,null,"لا غياب","-","أو فارغ"]
[14,null,null,null,null,null,null,null,null,null,null,null,null,null,null,null,null,null,null,null,null,null,null,null,null,null,null,null,null,null,null,null,null,"",null,null,null,null,null,null,"غير مشروع",2]
[15,null,null,null,null,null,null,null,null,null,null,null,null,null,null,null,null,null,null,null,null,null,null,null,null,null,null,null,null,null,null,null,null,"",null,null,null,null,null,null,"مشروع - مريض",3]
[16,null,null,null,null,null,null,null,null,null,null,null,null,null,null,null,null,null,null,null,null,null,null,null,null,null,null,null,null,null,null,null,null,"",null,null,null,null,null,null,"مشروع - وفاة احد الاقارب",4]
[17,null,null,null,null,null,null,null,null,null,null,null,null,null,null,null,null,null,null,null,null,null,null,null,null,null,null,null,null,null,null,null,null,"",null,null,null,null,null,null,"مشروع - عرضية",5]
[18,null,null,null,null,null,null,null,null,null,null,null,null,null,null,null,null,null,null,null,null,null,null,null,null,null,null,null,null,null,null,null,null,"",null,null,null,null,null,null,"غير مشروع","غ"]
[19,null,null,null,null,null,null,null,null,null,null,null,null,null,null,null,null,null,null,null,null,null,null,null,null,null,null,null,null,null,null,null,null,"",null,null,null,null,null,null,"مشروع - مريض","م"]
[20,null,null,null,null,null,null,null,null,null,null,null,null,null,null,null,null,null,null,null,null,null,null,null,null,null,null,null,null,null,null,null,null,""]
[21,null,null,null,null,null,null,null,null,null,null,null,null,null,null,null,null,null,null,null,null,null,null,null,null,null,null,null,null,null,null,null,null,""]
[22,null,null,null,null,null,null,null,null,null,null,null,null,null,null,null,null,null,null,null,null,null,null,null,null,null,null,null,null,null,null,null,null,""]
[23,null,null,null,null,null,null,null,null,null,null,null,null,null,null,null,null,null,null,null,null,null,null,null,null,null,null,null,null,null,null,null,null,""]
[24,null,null,null,null,null,null,null,null,null,null,null,null,null,null,null,null,null,null,null,null,null,null,null,null,null,null,null,null,null,null,null,null,""]
[25,null,null,null,null,null,null,null,null,null,null,null,null,null,null,null,null,null,null,null,null,null,null,null,null,null,null,null,null,null,null,null,null,""]
[26,null,null,null,null,null,null,null,null,null,null,null,null,null,null,null,null,null,null,null,null,null,null,null,null,null,null,null,null,null,null,null,null,""]
[27,null,null,null,null,null,null,null,null,null,null,null,null,null,null,null,null,null,null,null,null,null,null,null,null,null,null,null,null,null,null,null,null,""]
[28,null,null,null,null,null,null,null,null,null,null,null,null,null,null,null,null,null,null,null,null,null,null,null,null,null,null,null,null,null,null,null,null,""]
[29,null,null,null,null,null,null,null,null,null,null,null,null,null,null,null,null,null,null,null,null,null,null,null,null,null,null,null,null,null,null,null,null,""]
[30,null,null,null,null,null,null,null,null,null,null,null,null,null,null,null,null,null,null,null,null,null,null,null,null,null,null,null,null,null,null,null,null,""]
[31,null,null,null,null,null,null,null,null,null,null,null,null,null,null,null,null,null,null,null,null,null,null,null,null,null,null,null,null,null,null,null,null,""]
[32,null,null,null,null,null,null,null,null,null,null,null,null,null,null,null,null,null,null,null,null,null,null,null,null,null,null,null,null,null,null,null,null,""]
[33,null,null,null,null,null,null,null,null,null,null,null,null,null,null,null,null,null,null,null,null,null,null,null,null,null,null,null,null,null,null,null,null,""]
[34,null,null,null,null,null,null,null,null,null,null,null,null,null,null,null,null,null,null,null,null,null,null,null,null,null,null,null,null,null,null,null,null,""]
[35,null,null,null,null,null,null,null,null,null,null,null,null,null,null,null,null,null,null,null,null,null,null,null,null,null,null,null,null,null,null,null,null,""]
[36,null,null,null,null,null,null,null,null,null,null,null,null,null,null,null,null,null,null,null,null,null,null,null,null,null,null,null,null,null,null,null,null,""]
[37,null,null,null,null,null,null,null,null,null,null,null,null,null,null,null,null,null,null,null,null,null,null,null,null,null,null,null,null,null,null,null,null,""]
[38,null,null,null,null,null,null,null,null,null,null,null,null,null,null,null,null,null,null,null,null,null,null,null,null,null,null,null,null,null,null,null,null,""]
[39,null,null,null,null,null,null,null,null,null,null,null,null,null,null,null,null,null,null,null,null,null,null,null,null,null,null,null,null,null,null,null,null,""]
[40,null,null,null,null,null,null,null,null,null,null,null,null,null,null,null,null,null,null,null,null,null,null,null,null,null,null,null,null,null,null,null,null,""]
[41,null,null,null,null,null,null,null,null,null,null,null,null,null,null,null,null,null,null,null,null,null,null,null,null,null,null,null,null,null,null,null,null,""]
[42,null,null,null,null,null,null,null,null,null,null,null,null,null,null,null,null,null,null,null,null,null,null,null,null,null,null,null,null,null,null,null,null,""]
[43,null,null,null,null,null,null,null,null,null,null,null,null,null,null,null,null,null,null,null,null,null,null,null,null,null,null,null,null,null,null,null,null,""]
[44,null,null,null,null,null,null,null,null,null,null,null,null,null,null,null,null,null,null,null,null,null,null,null,null,null,null,null,null,null,null,null,null,""]
[45,null,null,null,null,null,null,null,null,null,null,null,null,null,null,null,null,null,null,null,null,null,null,null,null,null,null,null,null,null,null,null,null,""]
[46,null,null,null,null,null,null,null,null,null,null,null,null,null,null,null,null,null,null,null,null,null,null,null,null,null,null,null,null,null,null,null,null,""]
[47,null,null,null,null,null,null,null,null,null,null,null,null,null,null,null,null,null,null,null,null,null,null,null,null,null,null,null,null,null,null,null,null,""]
[48,null,null,null,null,null,null,null,null,null,null,null,null,null,null,null,null,null,null,null,null,null,null,null,null,null,null,null,null,null,null,null,null,""]
[49,null,null,null,null,null,null,null,null,null,null,null,null,null,null,null,null,null,null,null,null,null,null,null,null,null,null,null,null,null,null,null,null,""]
[50,null,null,null,null,null,null,null,null,null,null,null,null,null,null,null,null,null,null,null,null,null,null,null,null,null,null,null,null,null,null,null,null,""]
[51,null,null,null,null,null,null,null,null,null,null,null,null,null,null,null,null,null,null,null,null,null,null,null,null,null,null,null,null,null,null,null,null,""]
[52,null,null,null,null,null,null,null,null,null,null,null,null,null,null,null,null,null,null,null,null,null,null,null,null,null,null,null,null,null,null,null,null,""]
[53,null,null,null,null,null,null,null,null,null,null,null,null,null,null,null,null,null,null,null,null,null,null,null,null,null,null,null,null,null,null,null,null,""]
[54,null,null,null,null,null,null,null,null,null,null,null,null,null,null,null,null,null,null,null,null,null,null,null,null,null,null,null,null,null,null,null,null,""]
[55,null,null,null,null,null,null,null,null,null,null,null,null,null,null,null,null,null,null,null,null,null,null,null,null,null,null,null,null,null,null,null,null,""]
[56,null,null,null,null,null,null,null,null,null,null,null,null,null,null,null,null,null,null,null,null,null,null,null,null,null,null,null,null,null,null,null,null,""]
[57,null,null,null,null,null,null,null,null,null,null,null,null,null,null,null,null,null,null,null,null,null,null,null,null,null,null,null,null,null,null,null,null,""]
[58,null,null,null,null,null,null,null,null,null,null,null,null,null,null,null,null,null,null,null,null,null,null,null,null,null,null,null,null,null,null,null,null,""]
[59,null,null,null,null,null,null,null,null,null,null,null,null,null,null,null,null,null,null,null,null,null,null,null,null,null,null,null,null,null,null,null,null,""]
[60,null,null,null,null,null,null,null,null,null,null,null,null,null,null,null,null,null,null,null,null,null,null,null,null,null,null,null,null,null,null,null,null,{"$f":"IF(B66<>\"\", IF(COUNTA(C66:AG66)> 0,COUNTA(C66:AG66),\"\"),\"\")","v":""},null,null,null,{"$f":"IF(B66<>\"\", IF($AL$6 - COUNTA(C66:AG66)> 0,$AL$6 - COUNTA(C66:AG66),\"\"),\"\")","v":""}]
["الحضور اليومي للطلبة",null,{"$f":"IF(OR(C69=\"H\",C69=\"W\"),\"-\",$H$71 - COUNTA(C7:C66))","v":0},{"$f":"IF(OR(D69=\"H\",D69=\"W\"),\"-\",$H$71 - COUNTA(D7:D66))","v":0},0,0,0,0,0,0,0,0,0,0,0,0,0,0,0,0,0,0,0,0,0,0,0,0,0,0,0,0,0,null,null,null,null,{"$f":"SUM(AL7:AL66)","v":0}]
[null,null,null,null,null,null,null,null,null,null,null,null,null,null,null,null,null,null,null,null,null,null,null,null,null,null,null,null,null,null,null,null,null,{"$f":"SUM(AH7:AH66)","v":0}]
[null," حالة اليوم ( رمز )"]
[null,"الشهر",null,"عدد الاجتماعات",null,null,null,"عدد الطلاب",null,null,null,"الحضور لو لم يكن غياب",null,null,null,null,null,"مجموع الحضور",null,null,null,"متوسط الحضور",null,null,null,null,"النسبة المئوية للحضور"]
[null,{"$f":"LOOKUP($AO$6,$AP$6:$AP$17,$AQ$6:$AQ$17)","v":"كانون أول"},null,{"$f":"AL6","v":0},null,null,null,{"$f":"COUNTA(B7:B66)","v":0},null,null,null,{"$f":"D71*H71","v":0},null,null,null,null,null,{"$f":"AL67","v":0},null,null,null,{"$f":"IF(D71<>0,R71/D71,0)","v":0},null,null,null,null,{"$f":"IF(H71<>0,V71/H71,0)","v":0}]

{"sheet":"العاشر  أ (17)","index":3,"n_rows":71,"n_cols":46,"rows_kept":71,"cut":false,"hidden":true,"merged":[[69,21,69,25],[69,26,69,32],[70,1,70,2],[70,3,70,6],[70,7,70,10],[70,11,70,16],[70,17,70,20],[70,21,70,25],[70,26,70,32],[69,17,69,20],[66,0,66,1],[69,1,69,2],[69,3,69,6],[69,7,69,10],[69,11,69,16],[65,34,65,36],[54,34,54,36],[55,34,55,36],[56,34,56,36],[57,34,57,36],[58,34,58,36],[59,34,59,36],[60,34,60,36],[61,34,61,36],[62,34,62,36],[63,34,63,36],[64,34,64,36],[53,34,53,36],[42,34,42,36],[43,34,43,36],[44,34,44,36],[45,34,45,36],[46,34,46,36],[47,34,47,36],[48,34,48,36],[49,34,49,36],[50,34,50,36],[51,34,51,36],[52,34,52,36],[41,34,41,36],[30,34,30,36],[31,34,31,36],[32,34,32,36],[33,34,33,36],[34,34,34,36],[35,34,35,36],[36,34,36,36],[37,34,37,36],[38,34,38,36],[39,34,39,36],[40,34,40,36],[29,34,29,36],[18,34,18,36],[19,34,19,36],[20,34,20,36],[21,34,21,36],[22,34,22,36],[23,34,23,36],[24,34,24,36],[25,34,25,36],[26,34,26,36],[27,34,27,36],[28,34,28,36],[17,34,17,36],[6,34,6,36],[7,34,7,36],[8,34,8,36],[9,34,9,36],[10,34,10,36],[11,34,11,36],[12,34,12,36],[13,34,13,36],[14,34,14,36],[15,34,15,36],[16,34,16,36],[4,44,4,45],[0,0,0,36],[0,40,0,42],[1,0,1,36],[2,2,2,6],[2,7,2,11],[2,13,2,14],[2,15,2,19],[2,21,2,23],[2,24,2,30],[2,34,2,36],[4,0,5,0],[4,1,5,1],[4,33,5,33],[4,34,5,36],[4,40,4,42]]}
["بسم الله الرحمن الرحيم",null,null,null,null,null,null,null,null,null,null,null,null,null,null,null,null,null,null,null,null,null,null,null,null,null,null,null,null,null,null,null,null,null,null,null,null,"N1",null,"اسم المدرسة","مدرسة احمد الطراونة الثاتوية للبنين"]
[{"$f":"AO1","v":"مدرسة احمد الطراونة الثاتوية للبنين"},null,null,null,null,null,null,null,null,null,null,null,null,null,null,null,null,null,null,null,null,null,null,null,null,null,null,null,null,null,null,null,null,null,null,null,null,null,null,"الصف والشعبة:","التاسع ج"]
[null,null,"سجل الغياب لشهر",null,null,null,null,{"$f":"LOOKUP($AO$6,$AP$6:$AP$17,$AQ$6:$AQ$17)","v":"كانون أول"},null,null,null,null,null,"لعام",null,{"$f":"AO3","v":"2019 - 2020"},null,null,null,null,null,"مربي الصف",null,null,{"$f":"AO5","v":0},null,null,null,null,null,null,null,null,"الصف:",{"$f":"AO2","v":"التاسع ج"},null,null,null,null,"لعام",{"$f":"AP3&\" - \"&AQ3","v":"2019 - 2020"},2019,2020]
[]
["الرقم المتسلسل","الاســـــــــــــم",1,2,3,4,5,6,7,8,9,10,11,12,13,14,15,16,17,18,19,20,21,22,23,24,25,26,27,28,29,30,31," عدد أيام غياب \n الطالب في الشهر","مـلاحظات",null,null,"الاجتماعات",null,"اسم المعلم",null,null,null,null,"الاجازات"]
[null,null,null,null,null,null,null,null,null,null,null,null,null,null,null,null,null,null,null,null,null,null,null,null,null,null,null,null,null,null,null,null,null,null,null,null,null,null,null,"الشهر",12,1,"كانون ثاني",null,"التاريخ","السبب"]
[1,null,null,null,null,null,null,null,null,null,null,null,null,null,null,null,null,null,null,null,null,null,null,null,null,null,null,null,null,null,null,null,null,{"$f":"IF(B7<>\"\", IF(COUNTA(C7:AG7)> 0,COUNTA(C7:AG7),\"\"),\"\")","v":""},null,null,null,null,null,null,null,2,"شباط"]
[2,null,null,null,null,null,null,null,null,null,null,null,null,null,null,null,null,null,null,null,null,null,null,null,null,null,null,null,null,null,null,null,null,{"$f":"IF(B8<>\"\", IF(COUNTA(C8:AG8)> 0,COUNTA(C8:AG8),\"\"),\"\")","v":""},null,null,null,null,null,true,null,3,"اذار"]
[3,null,null,null,null,null,null,null,null,null,null,null,null,null,null,null,null,null,null,null,null,null,null,null,null,null,null,null,null,null,null,null,null,{"$f":"IF(B9<>\"\", IF(COUNTA(C9:AG9)> 0,COUNTA(C9:AG9),\"\"),\"\")","v":""},null,null,null,null,null,null,null,4,"نيسان"]
[4,null,null,null,null,null,null,null,null,null,null,null,null,null,null,null,null,null,null,null,null,null,null,null,null,null,null,null,null,null,null,null,null,"",null,null,null,null,null,null,null,5,"ايار"]
[5,null,null,null,null,null,null,null,null,null,null,null,null,null,null,null,null,null,null,null,null,null,null,null,null,null,null,null,null,null,null,null,null,"",null,null,null,null,null,null,null,6,"حزيران"]
[6,null,null,null,null,null,null,null,null,null,null,null,null,null,null,null,null,null,null,null,null,null,null,null,null,null,null,null,null,null,null,null,null,"",null,null,null,null,null,null,null,7,"تموز"]
[7,null,null,null,null,null,null,null,null,null,null,null,null,null,null,null,null,null,null,null,null,null,null,null,null,null,null,null,null,null,null,null,null,"",null,null,null,null,null,null,null,8,"آب"]
[8,null,null,null,null,null,null,null,null,null,null,null,null,null,null,null,null,null,null,null,null,null,null,null,null,null,null,null,null,null,null,null,null,"",null,null,null,null,null,null,null,9,"ايلول"]
[9,null,null,null,null,null,null,null,null,null,null,null,null,null,null,null,null,null,null,null,null,null,null,null,null,null,null,null,null,null,null,null,null,"",null,null,null,null,null,null,null,10,"تشرين أول"]
[10,null,null,null,null,null,null,null,null,null,null,null,null,null,null,null,null,null,null,null,null,null,null,null,null,null,null,null,null,null,null,null,null,"",null,null,null,null,null,null,null,11,"تشرين ثاني"]
[11,null,null,null,null,null,null,null,null,null,null,null,null,null,null,null,null,null,null,null,null,null,null,null,null,null,null,null,null,null,null,null,null,"",null,null,null,null,null,null,null,12,"كانون أول"]
[12,null,null,null,null,null,null,null,null,null,null,null,null,null,null,null,null,null,null,null,null,null,null,null,null,null,null,null,null,null,null,null,null,"",null,null,null,null,null,null,"نوع الغياب"]
[13,null,null,null,null,null,null,null,null,null,null,null,null,null,null,null,null,null,null,null,null,null,null,null,null,null,null,null,null,null,null,null,null,"",null,null,null,null,null,null,"لا غياب","-","أو فارغ"]
[14,null,null,null,null,null,null,null,null,null,null,null,null,null,null,null,null,null,null,null,null,null,null,null,null,null,null,null,null,null,null,null,null,"",null,null,null,null,null,null,"غير مشروع",2]
[15,null,null,null,null,null,null,null,null,null,null,null,null,null,null,null,null,null,null,null,null,null,null,null,null,null,null,null,null,null,null,null,null,"",null,null,null,null,null,null,"مشروع - مريض",3]
[16,null,null,null,null,null,null,null,null,null,null,null,null,null,null,null,null,null,null,null,null,null,null,null,null,null,null,null,null,null,null,null,null,"",null,null,null,null,null,null,"مشروع - وفاة احد الاقارب",4]
[17,null,null,null,null,null,null,null,null,null,null,null,null,null,null,null,null,null,null,null,null,null,null,null,null,null,null,null,null,null,null,null,null,"",null,null,null,null,null,null,"مشروع - عرضية",5]
[18,null,null,null,null,null,null,null,null,null,null,null,null,null,null,null,null,null,null,null,null,null,null,null,null,null,null,null,null,null,null,null,null,"",null,null,null,null,null,null,"غير مشروع","غ"]
[19,null,null,null,null,null,null,null,null,null,null,null,null,null,null,null,null,null,null,null,null,null,null,null,null,null,null,null,null,null,null,null,null,"",null,null,null,null,null,null,"مشروع - مريض","م"]
[20,null,null,null,null,null,null,null,null,null,null,null,null,null,null,null,null,null,null,null,null,null,null,null,null,null,null,null,null,null,null,null,null,""]
[21,null,null,null,null,null,null,null,null,null,null,null,null,null,null,null,null,null,null,null,null,null,null,null,null,null,null,null,null,null,null,null,null,""]
[22,null,null,null,null,null,null,null,null,null,null,null,null,null,null,null,null,null,null,null,null,null,null,null,null,null,null,null,null,null,null,null,null,""]
[23,null,null,null,null,null,null,null,null,null,null,null,null,null,null,null,null,null,null,null,null,null,null,null,null,null,null,null,null,null,null,null,null,""]
[24,null,null,null,null,null,null,null,null,null,null,null,null,null,null,null,null,null,null,null,null,null,null,null,null,null,null,null,null,null,null,null,null,""]
[25,null,null,null,null,null,null,null,null,null,null,null,null,null,null,null,null,null,null,null,null,null,null,null,null,null,null,null,null,null,null,null,null,""]
[26,null,null,null,null,null,null,null,null,null,null,null,null,null,null,null,null,null,null,null,null,null,null,null,null,null,null,null,null,null,null,null,null,""]
[27,null,null,null,null,null,null,null,null,null,null,null,null,null,null,null,null,null,null,null,null,null,null,null,null,null,null,null,null,null,null,null,null,""]
[28,null,null,null,null,null,null,null,null,null,null,null,null,null,null,null,null,null,null,null,null,null,null,null,null,null,null,null,null,null,null,null,null,""]
[29,null,null,null,null,null,null,null,null,null,null,null,null,null,null,null,null,null,null,null,null,null,null,null,null,null,null,null,null,null,null,null,null,""]
[30,null,null,null,null,null,null,null,null,null,null,null,null,null,null,null,null,null,null,null,null,null,null,null,null,null,null,null,null,null,null,null,null,""]
[31,null,null,null,null,null,null,null,null,null,null,null,null,null,null,null,null,null,null,null,null,null,null,null,null,null,null,null,null,null,null,null,null,""]
[32,null,null,null,null,null,null,null,null,null,null,null,null,null,null,null,null,null,null,null,null,null,null,null,null,null,null,null,null,null,null,null,null,""]
[33,null,null,null,null,null,null,null,null,null,null,null,null,null,null,null,null,null,null,null,null,null,null,null,null,null,null,null,null,null,null,null,null,""]
[34,null,null,null,null,null,null,null,null,null,null,null,null,null,null,null,null,null,null,null,null,null,null,null,null,null,null,null,null,null,null,null,null,""]
[35,null,null,null,null,null,null,null,null,null,null,null,null,null,null,null,null,null,null,null,null,null,null,null,null,null,null,null,null,null,null,null,null,""]
[36,null,null,null,null,null,null,null,null,null,null,null,null,null,null,null,null,null,null,null,null,null,null,null,null,null,null,null,null,null,null,null,null,""]
[37,null,null,null,null,null,null,null,null,null,null,null,null,null,null,null,null,null,null,null,null,null,null,null,null,null,null,null,null,null,null,null,null,""]
[38,null,null,null,null,null,null,null,null,null,null,null,null,null,null,null,null,null,null,null,null,null,null,null,null,null,null,null,null,null,null,null,null,""]
[39,null,null,null,null,null,null,null,null,null,null,null,null,null,null,null,null,null,null,null,null,null,null,null,null,null,null,null,null,null,null,null,null,""]
[40,null,null,null,null,null,null,null,null,null,null,null,null,null,null,null,null,null,null,null,null,null,null,null,null,null,null,null,null,null,null,null,null,""]
[41,null,null,null,null,null,null,null,null,null,null,null,null,null,null,null,null,null,null,null,null,null,null,null,null,null,null,null,null,null,null,null,null,""]
[42,null,null,null,null,null,null,null,null,null,null,null,null,null,null,null,null,null,null,null,null,null,null,null,null,null,null,null,null,null,null,null,null,""]
[43,null,null,null,null,null,null,null,null,null,null,null,null,null,null,null,null,null,null,null,null,null,null,null,null,null,null,null,null,null,null,null,null,""]
[44,null,null,null,null,null,null,null,null,null,null,null,null,null,null,null,null,null,null,null,null,null,null,null,null,null,null,null,null,null,null,null,null,""]
[45,null,null,null,null,null,null,null,null,null,null,null,null,null,null,null,null,null,null,null,null,null,null,null,null,null,null,null,null,null,null,null,null,""]
[46,null,null,null,null,null,null,null,null,null,null,null,null,null,null,null,null,null,null,null,null,null,null,null,null,null,null,null,null,null,null,null,null,""]
[47,null,null,null,null,null,null,null,null,null,null,null,null,null,null,null,null,null,null,null,null,null,null,null,null,null,null,null,null,null,null,null,null,""]
[48,null,null,null,null,null,null,null,null,null,null,null,null,null,null,null,null,null,null,null,null,null,null,null,null,null,null,null,null,null,null,null,null,""]
[49,null,null,null,null,null,null,null,null,null,null,null,null,null,null,null,null,null,null,null,null,null,null,null,null,null,null,null,null,null,null,null,null,""]
[50,null,null,null,null,null,null,null,null,null,null,null,null,null,null,null,null,null,null,null,null,null,null,null,null,null,null,null,null,null,null,null,null,""]
[51,null,null,null,null,null,null,null,null,null,null,null,null,null,null,null,null,null,null,null,null,null,null,null,null,null,null,null,null,null,null,null,null,""]
[52,null,null,null,null,null,null,null,null,null,null,null,null,null,null,null,null,null,null,null,null,null,null,null,null,null,null,null,null,null,null,null,null,""]
[53,null,null,null,null,null,null,null,null,null,null,null,null,null,null,null,null,null,null,null,null,null,null,null,null,null,null,null,null,null,null,null,null,""]
[54,null,null,null,null,null,null,null,null,null,null,null,null,null,null,null,null,null,null,null,null,null,null,null,null,null,null,null,null,null,null,null,null,""]
[55,null,null,null,null,null,null,null,null,null,null,null,null,null,null,null,null,null,null,null,null,null,null,null,null,null,null,null,null,null,null,null,null,""]
[56,null,null,null,null,null,null,null,null,null,null,null,null,null,null,null,null,null,null,null,null,null,null,null,null,null,null,null,null,null,null,null,null,""]
[57,null,null,null,null,null,null,null,null,null,null,null,null,null,null,null,null,null,null,null,null,null,null,null,null,null,null,null,null,null,null,null,null,""]
[58,null,null,null,null,null,null,null,null,null,null,null,null,null,null,null,null,null,null,null,null,null,null,null,null,null,null,null,null,null,null,null,null,""]
[59,null,null,null,null,null,null,null,null,null,null,null,null,null,null,null,null,null,null,null,null,null,null,null,null,null,null,null,null,null,null,null,null,""]
[60,null,null,null,null,null,null,null,null,null,null,null,null,null,null,null,null,null,null,null,null,null,null,null,null,null,null,null,null,null,null,null,null,{"$f":"IF(B66<>\"\", IF(COUNTA(C66:AG66)> 0,COUNTA(C66:AG66),\"\"),\"\")","v":""},null,null,null,{"$f":"IF(B66<>\"\", IF($AL$6 - COUNTA(C66:AG66)> 0,$AL$6 - COUNTA(C66:AG66),\"\"),\"\")","v":""}]
["الحضور اليومي للطلبة",null,{"$f":"IF(OR(C69=\"H\",C69=\"W\"),\"-\",$H$71 - COUNTA(C7:C66))","v":0},{"$f":"IF(OR(D69=\"H\",D69=\"W\"),\"-\",$H$71 - COUNTA(D7:D66))","v":0},0,0,0,0,0,0,0,0,0,0,0,0,0,0,0,0,0,0,0,0,0,0,0,0,0,0,0,0,0,null,null,null,null,{"$f":"SUM(AL7:AL66)","v":0}]
[null,null,null,null,null,null,null,null,null,null,null,null,null,null,null,null,null,null,null,null,null,null,null,null,null,null,null,null,null,null,null,null,null,{"$f":"SUM(AH7:AH66)","v":0}]
[null," حالة اليوم ( رمز )"]
[null,"الشهر",null,"عدد الاجتماعات",null,null,null,"عدد الطلاب",null,null,null,"الحضور لو لم يكن غياب",null,null,null,null,null,"مجموع الحضور",null,null,null,"متوسط الحضور",null,null,null,null,"النسبة المئوية للحضور"]
[null,{"$f":"LOOKUP($AO$6,$AP$6:$AP$17,$AQ$6:$AQ$17)","v":"كانون أول"},null,{"$f":"AL6","v":0},null,null,null,{"$f":"COUNTA(B7:B66)","v":0},null,null,null,{"$f":"D71*H71","v":0},null,null,null,null,null,{"$f":"AL67","v":0},null,null,null,{"$f":"IF(D71<>0,R71/D71,0)","v":0},null,null,null,null,{"$f":"IF(H71<>0,V71/H71,0)","v":0}]

{"sheet":"خلاصة الغياب ","index":4,"n_rows":35,"n_cols":13,"rows_kept":35,"cut":false,"hidden":false,"merged":[[4,0,5,0],[4,1,5,1],[4,2,5,2],[4,12,5,14],[4,3,4,11]]}
[]
[]
[]
[]
["الرقم المتسلسل","الاســـــــــــــم"," عدد أيام غياب \n الطالب في الشهر","ايام الغياب ",null,null,null,null,null,null,null,null,"مـلاحظات"]
[null,null,null,"الغياب 1","الغياب 2","الغياب 3","الغياب 4","الغياب 5","الغياب 6","الغياب 7","الغياب 8","الغياب 9"]
[{"$f":"data!A7","v":1},{"$f":"data!B7","v":"ابراهيم محمد "},{"$f":"IF(data!B7=\"\",\"\", COUNTIF(data!C7:AG7,\"غ\"))","v":3},{"$f":"IFERROR(INDEX(data!$C$5:$AG$5,1,SMALL(IF(data!$C7:$AG7=\"غ\",COLUMN($A:$AE),\"\"),COLUMN()-3)),\"\")","v":"2021-10-03"},"2021-10-10","2021-10-14","","","","","",""]
[{"$f":"data!A8","v":2},{"$f":"data!B8","v":"ابراهيم محمد "},{"$f":"IF(data!B8=\"\",\"\", COUNTIF(data!C8:AG8,\"غ\"))","v":0},{"$f":"IFERROR(INDEX(data!$C$5:$AG$5,1,SMALL(IF(data!$C8:$AG8=\"غ\",COLUMN($A:$AE),\"\"),COLUMN()-3)),\"\")","v":""},"","","","","","","",""]
[{"$f":"data!A9","v":3},{"$f":"data!B9","v":"احمد امين "},{"$f":"IF(data!B9=\"\",\"\", COUNTIF(data!C9:AG9,\"غ\"))","v":0},{"$f":"IFERROR(INDEX(data!$C$5:$AG$5,1,SMALL(IF(data!$C9:$AG9=\"غ\",COLUMN($A:$AE),\"\"),COLUMN()-3)),\"\")","v":""},"","","","","","","",""]
[{"$f":"data!A10","v":4},{"$f":"data!B10","v":"احمد امين "},{"$f":"IF(data!B10=\"\",\"\", COUNTIF(data!C10:AG10,\"غ\"))","v":0},{"$f":"IFERROR(INDEX(data!$C$5:$AG$5,1,SMALL(IF(data!$C10:$AG10=\"غ\",COLUMN($A:$AE),\"\"),COLUMN()-3)),\"\")","v":""},"","","","","","","",""]
[{"$f":"data!A11","v":5},{"$f":"data!B11","v":"احمد هيثم "},{"$f":"IF(data!B11=\"\",\"\", COUNTIF(data!C11:AG11,\"غ\"))","v":0},{"$f":"IFERROR(INDEX(data!$C$5:$AG$5,1,SMALL(IF(data!$C11:$AG11=\"غ\",COLUMN($A:$AE),\"\"),COLUMN()-3)),\"\")","v":""},"","","","","","","",""]
[{"$f":"data!A12","v":6},{"$f":"data!B12","v":"احمد هيثم "},{"$f":"IF(data!B12=\"\",\"\", COUNTIF(data!C12:AG12,\"غ\"))","v":0},{"$f":"IFERROR(INDEX(data!$C$5:$AG$5,1,SMALL(IF(data!$C12:$AG12=\"غ\",COLUMN($A:$AE),\"\"),COLUMN()-3)),\"\")","v":""},"","","","","","","",""]
[{"$f":"data!A13","v":7},{"$f":"data!B13","v":"ادهم ياسر "},{"$f":"IF(data!B13=\"\",\"\", COUNTIF(data!C13:AG13,\"غ\"))","v":0},{"$f":"IFERROR(INDEX(data!$C$5:$AG$5,1,SMALL(IF(data!$C13:$AG13=\"غ\",COLUMN($A:$AE),\"\"),COLUMN()-3)),\"\")","v":""},"","","","","","","",""]
[{"$f":"data!A14","v":8},{"$f":"data!B14","v":"ادهم ياسر "},{"$f":"IF(data!B14=\"\",\"\", COUNTIF(data!C14:AG14,\"غ\"))","v":0},{"$f":"IFERROR(INDEX(data!$C$5:$AG$5,1,SMALL(IF(data!$C14:$AG14=\"غ\",COLUMN($A:$AE),\"\"),COLUMN()-3)),\"\")","v":""},"","","","","","","",""]
[{"$f":"data!A15","v":9},{"$f":"data!B15","v":"انس ياسر "},{"$f":"IF(data!B15=\"\",\"\", COUNTIF(data!C15:AG15,\"غ\"))","v":0},{"$f":"IFERROR(INDEX(data!$C$5:$AG$5,1,SMALL(IF(data!$C15:$AG15=\"غ\",COLUMN($A:$AE),\"\"),COLUMN()-3)),\"\")","v":""},"","","","","","","",""]
[{"$f":"data!A16","v":10},{"$f":"data!B16","v":"انس ياسر "},{"$f":"IF(data!B16=\"\",\"\", COUNTIF(data!C16:AG16,\"غ\"))","v":0},{"$f":"IFERROR(INDEX(data!$C$5:$AG$5,1,SMALL(IF(data!$C16:$AG16=\"غ\",COLUMN($A:$AE),\"\"),COLUMN()-3)),\"\")","v":""},"","","","","","","",""]
[{"$f":"data!A17","v":11},{"$f":"data!B17","v":0},{"$f":"IF(data!B17=\"\",\"\", COUNTIF(data!C17:AG17,\"غ\"))","v":""},{"$f":"IFERROR(INDEX(data!$C$5:$AG$5,1,SMALL(IF(data!$C17:$AG17=\"غ\",COLUMN($A:$AE),\"\"),COLUMN()-3)),\"\")","v":""},"","","","","","","",""]
[{"$f":"data!A18","v":12},{"$f":"data!B18","v":0},{"$f":"IF(data!B18=\"\",\"\", COUNTIF(data!C18:AG18,\"غ\"))","v":""},{"$f":"IFERROR(INDEX(data!$C$5:$AG$5,1,SMALL(IF(data!$C18:$AG18=\"غ\",COLUMN($A:$AE),\"\"),COLUMN()-3)),\"\")","v":""},"","","","","","","",""]
[{"$f":"data!A19","v":13},{"$f":"data!B19","v":0},{"$f":"IF(data!B19=\"\",\"\", COUNTIF(data!C19:AG19,\"غ\"))","v":""},{"$f":"IFERROR(INDEX(data!$C$5:$AG$5,1,SMALL(IF(data!$C19:$AG19=\"غ\",COLUMN($A:$AE),\"\"),COLUMN()-3)),\"\")","v":""},"","","","","","","",""]
[{"$f":"data!A20","v":14},{"$f":"data!B20","v":0},{"$f":"IF(data!B20=\"\",\"\", COUNTIF(data!C20:AG20,\"غ\"))","v":""},{"$f":"IFERROR(INDEX(data!$C$5:$AG$5,1,SMALL(IF(data!$C20:$AG20=\"غ\",COLUMN($A:$AE),\"\"),COLUMN()-3)),\"\")","v":""},"","","","","","","",""]
[{"$f":"data!A21","v":15},{"$f":"data!B21","v":0},{"$f":"IF(data!B21=\"\",\"\", COUNTIF(data!C21:AG21,\"غ\"))","v":""},{"$f":"IFERROR(INDEX(data!$C$5:$AG$5,1,SMALL(IF(data!$C21:$AG21=\"غ\",COLUMN($A:$AE),\"\"),COLUMN()-3)),\"\")","v":""},"","","","","","","",""]
[{"$f":"data!A22","v":16},{"$f":"data!B22","v":0},{"$f":"IF(data!B22=\"\",\"\", COUNTIF(data!C22:AG22,\"غ\"))","v":""},{"$f":"IFERROR(INDEX(data!$C$5:$AG$5,1,SMALL(IF(data!$C22:$AG22=\"غ\",COLUMN($A:$AE),\"\"),COLUMN()-3)),\"\")","v":""},"","","","","","","",""]
[{"$f":"data!A23","v":17},{"$f":"data!B23","v":0},{"$f":"IF(data!B23=\"\",\"\", COUNTIF(data!C23:AG23,\"غ\"))","v":""},{"$f":"IFERROR(INDEX(data!$C$5:$AG$5,1,SMALL(IF(data!$C23:$AG23=\"غ\",COLUMN($A:$AE),\"\"),COLUMN()-3)),\"\")","v":""},"","","","","","","",""]
[{"$f":"data!A24","v":18},{"$f":"data!B24","v":0},{"$f":"IF(data!B24=\"\",\"\", COUNTIF(data!C24:AG24,\"غ\"))","v":""},{"$f":"IFERROR(INDEX(data!$C$5:$AG$5,1,SMALL(IF(data!$C24:$AG24=\"غ\",COLUMN($A:$AE),\"\"),COLUMN()-3)),\"\")","v":""},"","","","","","","",""]
[{"$f":"data!A25","v":19},{"$f":"data!B25","v":0},{"$f":"IF(data!B25=\"\",\"\", COUNTIF(data!C25:AG25,\"غ\"))","v":""},{"$f":"IFERROR(INDEX(data!$C$5:$AG$5,1,SMALL(IF(data!$C25:$AG25=\"غ\",COLUMN($A:$AE),\"\"),COLUMN()-3)),\"\")","v":""},"","","","","","","",""]
[{"$f":"data!A26","v":20},{"$f":"data!B26","v":0},{"$f":"IF(data!B26=\"\",\"\", COUNTIF(data!C26:AG26,\"غ\"))","v":""},{"$f":"IFERROR(INDEX(data!$C$5:$AG$5,1,SMALL(IF(data!$C26:$AG26=\"غ\",COLUMN($A:$AE),\"\"),COLUMN()-3)),\"\")","v":""},"","","","","","","",""]
[{"$f":"data!A27","v":21},{"$f":"data!B27","v":0},{"$f":"IF(data!B27=\"\",\"\", COUNTIF(data!C27:AG27,\"غ\"))","v":""},{"$f":"IFERROR(INDEX(data!$C$5:$AG$5,1,SMALL(IF(data!$C27:$AG27=\"غ\",COLUMN($A:$AE),\"\"),COLUMN()-3)),\"\")","v":""},"","","","","","","",""]
[{"$f":"data!A28","v":22},{"$f":"data!B28","v":0},{"$f":"IF(data!B28=\"\",\"\", COUNTIF(data!C28:AG28,\"غ\"))","v":""},{"$f":"IFERROR(INDEX(data!$C$5:$AG$5,1,SMALL(IF(data!$C28:$AG28=\"غ\",COLUMN($A:$AE),\"\"),COLUMN()-3)),\"\")","v":""},"","","","","","","",""]
[{"$f":"data!A29","v":23},{"$f":"data!B29","v":0},{"$f":"IF(data!B29=\"\",\"\", COUNTIF(data!C29:AG29,\"غ\"))","v":""},{"$f":"IFERROR(INDEX(data!$C$5:$AG$5,1,SMALL(IF(data!$C29:$AG29=\"غ\",COLUMN($A:$AE),\"\"),COLUMN()-3)),\"\")","v":""},"","","","","","","",""]
[{"$f":"data!A30","v":24},{"$f":"data!B30","v":0},{"$f":"IF(data!B30=\"\",\"\", COUNTIF(data!C30:AG30,\"غ\"))","v":""},{"$f":"IFERROR(INDEX(data!$C$5:$AG$5,1,SMALL(IF(data!$C30:$AG30=\"غ\",COLUMN($A:$AE),\"\"),COLUMN()-3)),\"\")","v":""},"","","","","","","",""]
[{"$f":"data!A31","v":25},{"$f":"data!B31","v":0},{"$f":"IF(data!B31=\"\",\"\", COUNTIF(data!C31:AG31,\"غ\"))","v":""},{"$f":"IFERROR(INDEX(data!$C$5:$AG$5,1,SMALL(IF(data!$C31:$AG31=\"غ\",COLUMN($A:$AE),\"\"),COLUMN()-3)),\"\")","v":""},"","","","","","","",""]
[{"$f":"data!A32","v":26},{"$f":"data!B32","v":0},{"$f":"IF(data!B32=\"\",\"\", COUNTIF(data!C32:AG32,\"غ\"))","v":""},{"$f":"IFERROR(INDEX(data!$C$5:$AG$5,1,SMALL(IF(data!$C32:$AG32=\"غ\",COLUMN($A:$AE),\"\"),COLUMN()-3)),\"\")","v":""},"","","","","","","",""]
[{"$f":"data!A33","v":27},{"$f":"data!B33","v":0},{"$f":"IF(data!B33=\"\",\"\", COUNTIF(data!C33:AG33,\"غ\"))","v":""},{"$f":"IFERROR(INDEX(data!$C$5:$AG$5,1,SMALL(IF(data!$C33:$AG33=\"غ\",COLUMN($A:$AE),\"\"),COLUMN()-3)),\"\")","v":""},"","","","","","","",""]
[{"$f":"data!A34","v":28},{"$f":"data!B34","v":0},{"$f":"IF(data!B34=\"\",\"\", COUNTIF(data!C34:AG34,\"غ\"))","v":""},{"$f":"IFERROR(INDEX(data!$C$5:$AG$5,1,SMALL(IF(data!$C34:$AG34=\"غ\",COLUMN($A:$AE),\"\"),COLUMN()-3)),\"\")","v":""},"","","","","","","",""]
[{"$f":"data!A35","v":29},{"$f":"data!B35","v":0},{"$f":"IF(data!B35=\"\",\"\", COUNTIF(data!C35:AG35,\"غ\"))","v":""},{"$f":"IFERROR(INDEX(data!$C$5:$AG$5,1,SMALL(IF(data!$C35:$AG35=\"غ\",COLUMN($A:$AE),\"\"),COLUMN()-3)),\"\")","v":""},"","","","","","","",""]